[Event "*** SCC Grand Prix: Titled Tuesday Blitz"]
[Site "Chess.com"]
[Date "2020.07.07"]
[Round "9"]
[White "Korona_91"]
[Black "ChessLover0108"]
[Result "0-1"]
[WhiteElo "2488"]
[BlackElo "2698"]
[TimeControl "180+1"]
[EndTime "11:45:45 PDT"]
[Termination "ChessLover0108 won by resignation"]

1. e4 {[%clk 0:03:00.9]} 1... c5 {[%clk 0:02:58.7]} 2. Nf3 {[%clk 0:02:58.5]}
2... d6 {[%clk 0:02:59.2]} 3. Bb5+ {[%clk 0:02:57.2]} 3... Bd7 {[%clk
0:02:59.2]} 4. c4 {[%clk 0:02:57]} 4... Nf6 {[%clk 0:02:58.3]} 5. Nc3 {[%clk
0:02:56.9]} 5... g6 {[%clk 0:02:58.8]} 6. d4 {[%clk 0:02:56.8]} 6... cxd4 {[%clk
0:02:58.7]} 7. Nxd4 {[%clk 0:02:55.7]} 7... Bg7 {[%clk 0:02:59.1]} 8. O-O {[%clk
0:02:47.1]} 8... O-O {[%clk 0:02:57.7]} 9. f3 {[%clk 0:02:44.1]} 9... a6 {[%clk
0:02:55.3]} 10. Bxd7 {[%clk 0:02:43.4]} 10... Nbxd7 {[%clk 0:02:56.2]} 11. b3
{[%clk 0:02:41.2]} 11... Rc8 {[%clk 0:02:50.9]} 12. Bb2 {[%clk 0:02:41.1]} 12...
Nc5 {[%clk 0:02:45.6]} 13. Rc1 {[%clk 0:02:37.5]} 13... e6 {[%clk 0:02:42.5]}
14. Qd2 {[%clk 0:02:34.7]} 14... Nfd7 {[%clk 0:02:38.4]} 15. Nde2 {[%clk
0:02:33.3]} 15... Ne5 {[%clk 0:02:33.8]} 16. Rcd1 {[%clk 0:02:30.1]} 16... Ncd3
{[%clk 0:02:20]} 17. Ba3 {[%clk 0:02:16.8]} 17... Qb6+ {[%clk 0:02:01.3]} 18. c5
{[%clk 0:02:04.1]} 18... dxc5 {[%clk 0:02:00.2]} 19. Qe3 {[%clk 0:01:37.1]}
19... Qa5 {[%clk 0:01:53]} 20. Bc1 {[%clk 0:01:28.2]} 20... Nxc1 {[%clk
0:01:43.2]} 21. Rxc1 {[%clk 0:01:28.6]} 21... c4 {[%clk 0:01:44.1]} 22. bxc4
{[%clk 0:01:21.7]} 22... Nxc4 {[%clk 0:01:43.1]} 23. Qf2 {[%clk 0:01:20.6]}
23... Nb2 {[%clk 0:01:20.2]} 24. Qe3 {[%clk 0:01:10.1]} 24... Nc4 {[%clk
0:01:06.6]} 25. Qf2 {[%clk 0:01:08.8]} 25... Rfd8 {[%clk 0:00:41.6]} 26. f4
{[%clk 0:00:57.1]} 26... Nd2 {[%clk 0:00:40.2]} 27. Rfd1 {[%clk 0:00:35.8]}
27... Bxc3 {[%clk 0:00:38.6]} 28. Rc2 {[%clk 0:00:30.4]} 28... Nxe4 {[%clk
0:00:37.5]} 29. Rxd8+ {[%clk 0:00:29.2]} 29... Rxd8 {[%clk 0:00:38.4]} 30. Qf1
{[%clk 0:00:28.3]} 30... Qb6+ {[%clk 0:00:35.2]} 31. Kh1 {[%clk 0:00:27.2]}
31... Rd1 {[%clk 0:00:35.4]} 0-1

[Event "*** SCC Grand Prix: Titled Tuesday Blitz"]
[Site "Chess.com"]
[Date "2020.07.07"]
[Round "9"]
[White "Ginger_GM"]
[Black "GianmarcoVaR"]
[Result "1-0"]
[WhiteElo "2674"]
[BlackElo "2532"]
[TimeControl "180+1"]
[EndTime "11:45:48 PDT"]
[Termination "Ginger_GM won on time"]

1. d4 {[%clk 0:03:00.9]} 1... Nf6 {[%clk 0:02:51]} 2. c4 {[%clk 0:02:57.6]} 2...
e6 {[%clk 0:02:50.4]} 3. Nf3 {[%clk 0:02:53.8]} 3... b6 {[%clk 0:02:48.6]} 4. g3
{[%clk 0:02:52]} 4... Bb7 {[%clk 0:02:48.7]} 5. Bg2 {[%clk 0:02:51.5]} 5... Bb4+
{[%clk 0:02:49.3]} 6. Bd2 {[%clk 0:02:51.1]} 6... c5 {[%clk 0:02:49.7]} 7. O-O
{[%clk 0:02:47.6]} 7... O-O {[%clk 0:02:49.9]} 8. Bf4 {[%clk 0:02:42.1]} 8...
cxd4 {[%clk 0:02:48.6]} 9. Qxd4 {[%clk 0:02:38.7]} 9... Be7 {[%clk 0:02:46.7]}
10. Bd6 {[%clk 0:02:34.6]} 10... Nc6 {[%clk 0:02:44.3]} 11. Qd3 {[%clk
0:02:27.3]} 11... Nb4 {[%clk 0:02:37.9]} 12. Bxb4 {[%clk 0:02:20.1]} 12... Bxb4
{[%clk 0:02:37.5]} 13. Nc3 {[%clk 0:02:17.9]} 13... a6 {[%clk 0:02:31.6]} 14.
Rfd1 {[%clk 0:02:03.6]} 14... Qc7 {[%clk 0:02:28.9]} 15. Rac1 {[%clk 0:02:00.8]}
15... Rac8 {[%clk 0:02:25.3]} 16. b3 {[%clk 0:01:55.8]} 16... Rfd8 {[%clk
0:02:24.8]} 17. Ng5 {[%clk 0:01:38.7]} 17... Bxg2 {[%clk 0:02:22.9]} 18. Kxg2
{[%clk 0:01:38.7]} 18... d5 {[%clk 0:01:46.5]} 19. Na4 {[%clk 0:00:55.9]} 19...
dxc4 {[%clk 0:01:24.9]} 20. Rxc4 {[%clk 0:00:54.2]} 20... Qb7+ {[%clk
0:01:23.8]} 21. Qf3 {[%clk 0:00:53.7]} 21... Nd5 {[%clk 0:00:05.3]} 22. Rxb4
{[%clk 0:00:48.2]} 22... h6 {[%clk 0:00:02.6]} 23. Nh3 {[%clk 0:00:37.9]} 23...
Qa7 {[%clk 0:00:01]} 24. Rbd4 {[%clk 0:00:34.5]} 1-0

[Event "*** SCC Grand Prix: Titled Tuesday Blitz"]
[Site "Chess.com"]
[Date "2020.07.07"]
[Round "9"]
[White "Rodchenkov_Vitalij"]
[Black "marabu44"]
[Result "1-0"]
[WhiteElo "2365"]
[BlackElo "2238"]
[TimeControl "180+1"]
[EndTime "11:45:49 PDT"]
[Termination "Rodchenkov_Vitalij won on time"]

1. d4 {[%clk 0:03:00.9]} 1... d5 {[%clk 0:02:56]} 2. Nf3 {[%clk 0:02:59.9]} 2...
Nf6 {[%clk 0:02:54.2]} 3. c4 {[%clk 0:02:58.1]} 3... e6 {[%clk 0:02:54]} 4. Nc3
{[%clk 0:02:57.1]} 4... c5 {[%clk 0:02:53.6]} 5. cxd5 {[%clk 0:02:54.7]} 5...
exd5 {[%clk 0:02:53.2]} 6. g3 {[%clk 0:02:47.6]} 6... Nc6 {[%clk 0:02:52.6]} 7.
Bg2 {[%clk 0:02:46.5]} 7... Be7 {[%clk 0:02:47.4]} 8. O-O {[%clk 0:02:44.8]}
8... O-O {[%clk 0:02:46.6]} 9. dxc5 {[%clk 0:02:44]} 9... d4 {[%clk 0:02:42.6]}
10. Na4 {[%clk 0:02:35.5]} 10... Bg4 {[%clk 0:02:38.7]} 11. Bf4 {[%clk
0:02:14.9]} 11... Qd7 {[%clk 0:02:36.6]} 12. Rc1 {[%clk 0:02:11.2]} 12... Rfe8
{[%clk 0:02:32.8]} 13. a3 {[%clk 0:02:06.2]} 13... Rad8 {[%clk 0:02:24]} 14. b4
{[%clk 0:02:00.7]} 14... Bh3 {[%clk 0:02:13.9]} 15. Nb2 {[%clk 0:01:54.6]} 15...
Bxg2 {[%clk 0:02:12.2]} 16. Kxg2 {[%clk 0:01:55.1]} 16... Ne4 {[%clk 0:02:10.9]}
17. Nc4 {[%clk 0:01:53]} 17... Nc3 {[%clk 0:02:00.9]} 18. Qd3 {[%clk 0:01:51.2]}
18... Bf6 {[%clk 0:01:53.6]} 19. e3 {[%clk 0:01:31.2]} 19... dxe3 {[%clk
0:01:42.6]} 20. Qxd7 {[%clk 0:01:20.6]} 20... Rxd7 {[%clk 0:01:42.2]} 21. Bxe3
{[%clk 0:01:19.9]} 21... Nd5 {[%clk 0:01:33.6]} 22. Bg5 {[%clk 0:01:17.4]} 22...
Bxg5 {[%clk 0:01:24.7]} 23. Nxg5 {[%clk 0:01:17.5]} 23... Re2 {[%clk 0:01:23]}
24. Rfe1 {[%clk 0:01:15.5]} 24... Rde7 {[%clk 0:01:16.1]} 25. Rxe2 {[%clk
0:01:14.9]} 25... Rxe2 {[%clk 0:01:15.6]} 26. Nd6 {[%clk 0:01:10.3]} 26... Nd4
{[%clk 0:01:03.7]} 27. Nxb7 {[%clk 0:01:02.7]} 27... Ne3+ {[%clk 0:00:58.4]} 28.
Kg1 {[%clk 0:01:02.6]} 28... Ng4 {[%clk 0:00:25.5]} 29. Nh3 {[%clk 0:00:58.3]}
29... h5 {[%clk 0:00:20.9]} 30. c6 {[%clk 0:00:56]} 30... Nf3+ {[%clk
0:00:12.4]} 31. Kg2 {[%clk 0:00:53.6]} 31... Nfxh2 {[%clk 0:00:05.5]} 32. c7
{[%clk 0:00:52.2]} 1-0

[Event "*** SCC Grand Prix: Titled Tuesday Blitz"]
[Site "Chess.com"]
[Date "2020.07.07"]
[Round "9"]
[White "Vision_64"]
[Black "rududuyk"]
[Result "1-0"]
[WhiteElo "2197"]
[BlackElo "2076"]
[TimeControl "180+1"]
[EndTime "11:45:53 PDT"]
[Termination "Vision_64 won on time"]

1. e4 {[%clk 0:03:00.9]} 1... e6 {[%clk 0:02:59.9]} 2. d4 {[%clk 0:03:00.3]}
2... d5 {[%clk 0:03:00.4]} 3. Nc3 {[%clk 0:03:00.1]} 3... Nf6 {[%clk 0:03:00.6]}
4. Bg5 {[%clk 0:02:59.6]} 4... dxe4 {[%clk 0:02:59.4]} 5. Nxe4 {[%clk
0:02:59.5]} 5... Be7 {[%clk 0:02:59.9]} 6. Bxf6 {[%clk 0:02:59.6]} 6... gxf6
{[%clk 0:03:00.5]} 7. Nf3 {[%clk 0:02:58.9]} 7... a6 {[%clk 0:02:59.5]} 8. Qd2
{[%clk 0:02:54.5]} 8... f5 {[%clk 0:02:55.4]} 9. Ng3 {[%clk 0:02:49.2]} 9... c5
{[%clk 0:02:47.6]} 10. O-O-O {[%clk 0:02:47.1]} 10... cxd4 {[%clk 0:02:01.9]}
11. Nxd4 {[%clk 0:02:41.6]} 11... h5 {[%clk 0:01:55]} 12. Qc3 {[%clk 0:02:28]}
12... Bf6 {[%clk 0:01:39.9]} 13. Bc4 {[%clk 0:01:31.4]} 13... b5 {[%clk
0:01:29.8]} 14. Bb3 {[%clk 0:01:29.6]} 14... Nd7 {[%clk 0:01:13.4]} 15. Qc6
{[%clk 0:01:17.7]} 15... Ra7 {[%clk 0:00:52.4]} 16. Nxe6 {[%clk 0:01:07.7]}
16... fxe6 {[%clk 0:00:46.3]} 17. Qxe6+ {[%clk 0:01:05.8]} 17... Qe7 {[%clk
0:00:39.2]} 18. Qxf5 {[%clk 0:01:00.2]} 18... Kf8 {[%clk 0:00:20.1]} 19. Rhe1
{[%clk 0:00:53.7]} 19... Qc5 {[%clk 0:00:15.4]} 20. Rd5 {[%clk 0:00:38.6]} 20...
Qb4 {[%clk 0:00:12.3]} 21. Red1 {[%clk 0:00:33.1]} 21... Rg8 {[%clk 0:00:10.3]}
22. Rxd7 {[%clk 0:00:30.7]} 22... Bxd7 {[%clk 0:00:09.9]} 23. Qxf6+ {[%clk
0:00:30.5]} 23... Ke8 {[%clk 0:00:07.3]} 24. Bxg8 {[%clk 0:00:26.4]} 1-0

[Event "*** SCC Grand Prix: Titled Tuesday Blitz"]
[Site "Chess.com"]
[Date "2020.07.07"]
[Round "9"]
[White "KingCrusher275"]
[Black "shineatchess"]
[Result "1-0"]
[WhiteElo "2435"]
[BlackElo "2193"]
[TimeControl "180+1"]
[EndTime "11:45:54 PDT"]
[Termination "KingCrusher275 won by resignation"]

1. d4 {[%clk 0:03:00.9]} 1... Nf6 {[%clk 0:02:59.3]} 2. c4 {[%clk 0:03:01.3]}
2... e6 {[%clk 0:02:59.6]} 3. Nc3 {[%clk 0:03:01.7]} 3... d5 {[%clk 0:02:58.6]}
4. cxd5 {[%clk 0:03:00.8]} 4... exd5 {[%clk 0:02:58.7]} 5. Bg5 {[%clk
0:03:01.5]} 5... c6 {[%clk 0:02:58.5]} 6. Qc2 {[%clk 0:03:02]} 6... Be7 {[%clk
0:02:56.5]} 7. e3 {[%clk 0:03:02.4]} 7... h6 {[%clk 0:02:54.6]} 8. Bh4 {[%clk
0:03:01.3]} 8... Nbd7 {[%clk 0:02:53.4]} 9. Bd3 {[%clk 0:03:00.9]} 9... Nh5
{[%clk 0:02:53.2]} 10. Bxe7 {[%clk 0:03:00]} 10... Qxe7 {[%clk 0:02:54.1]} 11.
Nge2 {[%clk 0:02:59.6]} 11... Nb6 {[%clk 0:02:51.8]} 12. O-O {[%clk 0:02:55.9]}
12... O-O {[%clk 0:02:51.1]} 13. Rae1 {[%clk 0:02:54.6]} 13... f5 {[%clk
0:02:39.9]} 14. Nf4 {[%clk 0:02:39.5]} 14... Nxf4 {[%clk 0:02:34.4]} 15. exf4
{[%clk 0:02:40.4]} 15... Qf6 {[%clk 0:02:34]} 16. Re5 {[%clk 0:02:40.2]} 16...
Be6 {[%clk 0:02:04.4]} 17. Rfe1 {[%clk 0:02:37.9]} 17... Rae8 {[%clk 0:01:53]}
18. Na4 {[%clk 0:02:15.9]} 18... Nd7 {[%clk 0:01:48.6]} 19. R5e3 {[%clk
0:02:14.8]} 19... g6 {[%clk 0:01:08.5]} 20. Nc5 {[%clk 0:02:08.9]} 20... Nxc5
{[%clk 0:01:07.3]} 21. Qxc5 {[%clk 0:02:09]} 21... Bd7 {[%clk 0:00:31.9]} 22.
Qxa7 {[%clk 0:02:00.5]} 22... Rxe3 {[%clk 0:00:28.4]} 23. Rxe3 {[%clk
0:01:53.6]} 23... Bc8 {[%clk 0:00:27.6]} 24. g3 {[%clk 0:01:46]} 24... h5 {[%clk
0:00:23.3]} 25. a4 {[%clk 0:01:41.7]} 25... h4 {[%clk 0:00:23]} 26. a5 {[%clk
0:01:40.7]} 26... h3 {[%clk 0:00:22.8]} 27. Bf1 {[%clk 0:01:34.1]} 27... Qh8
{[%clk 0:00:19.5]} 28. a6 {[%clk 0:01:30.4]} 28... bxa6 {[%clk 0:00:18.4]} 29.
Re7 {[%clk 0:01:30.4]} 29... Qh6 {[%clk 0:00:12.9]} 30. Qc7 {[%clk 0:01:22.2]}
30... Qh8 {[%clk 0:00:10.9]} 31. Qxc6 {[%clk 0:01:20.8]} 31... Qf6 {[%clk
0:00:10]} 32. Qxd5+ {[%clk 0:01:20.5]} 32... Kh8 {[%clk 0:00:09.2]} 33. Qc5
{[%clk 0:01:17]} 33... Rd8 {[%clk 0:00:08.4]} 34. Qc7 {[%clk 0:01:07.7]} 34...
Kg8 {[%clk 0:00:07.1]} 35. Qxd8+ {[%clk 0:01:07.2]} 35... Qf8 {[%clk 0:00:05.3]}
36. Re8 {[%clk 0:01:07.2]} 1-0

[Event "*** SCC Grand Prix: Titled Tuesday Blitz"]
[Site "Chess.com"]
[Date "2020.07.07"]
[Round "9"]
[White "Arathorn2"]
[Black "Alexandercs432"]
[Result "1-0"]
[WhiteElo "2290"]
[BlackElo "2120"]
[TimeControl "180+1"]
[EndTime "11:45:54 PDT"]
[Termination "Arathorn2 won by checkmate"]

1. d4 {[%clk 0:03:00.9]} 1... Nf6 {[%clk 0:02:57]} 2. c4 {[%clk 0:03:00.9]} 2...
e6 {[%clk 0:02:56.2]} 3. Nf3 {[%clk 0:03:01]} 3... b6 {[%clk 0:02:55.8]} 4. a3
{[%clk 0:03:00.6]} 4... Bb7 {[%clk 0:02:55.9]} 5. Nc3 {[%clk 0:03:00.8]} 5...
Be7 {[%clk 0:02:56.1]} 6. Qc2 {[%clk 0:03:00.6]} 6... d5 {[%clk 0:02:54.2]} 7.
cxd5 {[%clk 0:03:01.5]} 7... Nxd5 {[%clk 0:02:53]} 8. e4 {[%clk 0:03:01.5]} 8...
Nxc3 {[%clk 0:02:52.9]} 9. bxc3 {[%clk 0:03:02.4]} 9... O-O {[%clk 0:02:51.8]}
10. Bd3 {[%clk 0:03:02.3]} 10... c5 {[%clk 0:02:52.1]} 11. O-O {[%clk
0:03:01.3]} 11... Nd7 {[%clk 0:02:50.5]} 12. e5 {[%clk 0:03:00.1]} 12... h6
{[%clk 0:02:44.3]} 13. Qe2 {[%clk 0:02:57.1]} 13... cxd4 {[%clk 0:02:38.4]} 14.
cxd4 {[%clk 0:02:56.8]} 14... Re8 {[%clk 0:02:23.4]} 15. Be3 {[%clk 0:02:55.9]}
15... Rc8 {[%clk 0:02:18.2]} 16. a4 {[%clk 0:02:45.4]} 16... Nf8 {[%clk
0:02:14.8]} 17. Nd2 {[%clk 0:02:38.7]} 17... f5 {[%clk 0:02:01.7]} 18. exf6
{[%clk 0:02:36.3]} 18... Bxf6 {[%clk 0:02:00.9]} 19. Qg4 {[%clk 0:02:17.2]}
19... Kh8 {[%clk 0:01:51.2]} 20. a5 {[%clk 0:02:08.5]} 20... Rc3 {[%clk
0:01:38.3]} 21. Be4 {[%clk 0:02:00.8]} 21... Bd5 {[%clk 0:01:26.6]} 22. axb6
{[%clk 0:01:57.1]} 22... axb6 {[%clk 0:01:26]} 23. Ra7 {[%clk 0:01:51.8]} 23...
Rc7 {[%clk 0:01:15.4]} 24. Ra6 {[%clk 0:01:16.4]} 24... Rd7 {[%clk 0:00:53]} 25.
Bc2 {[%clk 0:01:08.6]} 25... Bb7 {[%clk 0:00:45.9]} 26. Ra2 {[%clk 0:00:57.2]}
26... Bxd4 {[%clk 0:00:45]} 27. Ba4 {[%clk 0:00:53.3]} 27... Bxe3 {[%clk
0:00:21.9]} 28. fxe3 {[%clk 0:00:54.2]} 28... Rxd2 {[%clk 0:00:20.3]} 29. Bxe8
{[%clk 0:00:53.1]} 29... Rxa2 {[%clk 0:00:15.7]} 30. Rxf8+ {[%clk 0:00:50.8]}
30... Kh7 {[%clk 0:00:15.4]} 31. Bg6# {[%clk 0:00:49.5]} 1-0

[Event "*** SCC Grand Prix: Titled Tuesday Blitz"]
[Site "Chess.com"]
[Date "2020.07.07"]
[Round "9"]
[White "elohunter1999"]
[Black "Beca95"]
[Result "1-0"]
[WhiteElo "2494"]
[BlackElo "2868"]
[TimeControl "180+1"]
[EndTime "11:45:55 PDT"]
[Termination "elohunter1999 won by resignation"]

1. e4 {[%clk 0:03:00.9]} 1... c6 {[%clk 0:02:59.7]} 2. Nc3 {[%clk 0:02:59.9]}
2... d5 {[%clk 0:03:00.6]} 3. Nf3 {[%clk 0:03:00.2]} 3... dxe4 {[%clk
0:03:00.9]} 4. Nxe4 {[%clk 0:03:00.2]} 4... Nf6 {[%clk 0:03:01.2]} 5. Qe2 {[%clk
0:03:00.4]} 5... Nxe4 {[%clk 0:03:00.5]} 6. Qxe4 {[%clk 0:03:01.3]} 6... Na6
{[%clk 0:02:59.8]} 7. d4 {[%clk 0:02:34.8]} 7... Nc7 {[%clk 0:02:55.2]} 8. Bd3
{[%clk 0:02:30.9]} 8... g6 {[%clk 0:02:54.5]} 9. Bd2 {[%clk 0:02:23.4]} 9... Bf5
{[%clk 0:02:54.5]} 10. Qe2 {[%clk 0:02:23.5]} 10... Bxd3 {[%clk 0:02:54.7]} 11.
Qxd3 {[%clk 0:02:24.4]} 11... Bg7 {[%clk 0:02:54.9]} 12. O-O-O {[%clk
0:02:23.2]} 12... Ne6 {[%clk 0:02:51.4]} 13. Be3 {[%clk 0:02:22.1]} 13... Qa5
{[%clk 0:02:47.9]} 14. Kb1 {[%clk 0:02:21.8]} 14... O-O-O {[%clk 0:02:47.6]} 15.
Rhe1 {[%clk 0:02:19.8]} 15... Rd5 {[%clk 0:02:35.9]} 16. c4 {[%clk 0:02:15.6]}
16... Rd6 {[%clk 0:02:35.4]} 17. Bd2 {[%clk 0:02:12.7]} 17... Qa6 {[%clk
0:02:32.3]} 18. Bc3 {[%clk 0:02:10.9]} 18... Rhd8 {[%clk 0:02:23]} 19. Ne5
{[%clk 0:02:02]} 19... Bxe5 {[%clk 0:02:07.2]} 20. Rxe5 {[%clk 0:02:02.9]} 20...
R8d7 {[%clk 0:01:35.7]} 21. g3 {[%clk 0:01:58.9]} 21... f6 {[%clk 0:01:31.2]}
22. Re3 {[%clk 0:01:32.1]} 22... Nxd4 {[%clk 0:01:27.6]} 23. c5 {[%clk
0:01:21.8]} 23... Rd5 {[%clk 0:01:26.6]} 24. Qxa6 {[%clk 0:01:19.9]} 24... bxa6
{[%clk 0:01:27.5]} 25. Rxd4 {[%clk 0:01:19.5]} 25... Rxd4 {[%clk 0:01:27.9]} 26.
Bxd4 {[%clk 0:01:20.4]} 26... Rxd4 {[%clk 0:01:27.9]} 27. Rxe7 {[%clk 0:01:21]}
27... Rd2 {[%clk 0:01:22.3]} 28. Rxh7 {[%clk 0:01:17]} 28... Rxf2 {[%clk
0:01:22.2]} 29. Rg7 {[%clk 0:01:10.6]} 29... Rxh2 {[%clk 0:01:14.2]} 30. Rxg6
{[%clk 0:01:10.7]} 30... Rf2 {[%clk 0:01:13.8]} 31. Rg7 {[%clk 0:01:05.1]} 31...
Kb8 {[%clk 0:01:13.6]} 32. g4 {[%clk 0:00:59.6]} 32... a5 {[%clk 0:01:13.6]} 33.
a3 {[%clk 0:00:57.1]} 33... a4 {[%clk 0:01:11.6]} 34. g5 {[%clk 0:00:53.7]}
34... fxg5 {[%clk 0:01:10.8]} 35. Rxg5 {[%clk 0:00:54.6]} 35... Rf4 {[%clk
0:01:10.3]} 36. Rg7 {[%clk 0:00:52.8]} 36... Rc4 {[%clk 0:01:09.7]} 37. Rg5
{[%clk 0:00:50.3]} 37... Kb7 {[%clk 0:01:08.9]} 38. b3 {[%clk 0:00:32.3]} 38...
axb3 {[%clk 0:01:08.3]} 39. Kb2 {[%clk 0:00:32.7]} 39... Ka6 {[%clk 0:01:08.1]}
40. Kxb3 {[%clk 0:00:33.1]} 40... Kb5 {[%clk 0:01:04.5]} 41. Rg7 {[%clk
0:00:33.2]} 41... a5 {[%clk 0:01:03.8]} 42. a4+ {[%clk 0:00:27.3]} 1-0

[Event "*** SCC Grand Prix: Titled Tuesday Blitz"]
[Site "Chess.com"]
[Date "2020.07.07"]
[Round "9"]
[White "Matveev_Vladimir"]
[Black "kushagramohan"]
[Result "1-0"]
[WhiteElo "2560"]
[BlackElo "2686"]
[TimeControl "180+1"]
[EndTime "11:45:56 PDT"]
[Termination "Matveev_Vladimir won by resignation"]

1. d4 {[%clk 0:03:00.9]} 1... Nf6 {[%clk 0:02:59.3]} 2. c4 {[%clk 0:03:00.9]}
2... g6 {[%clk 0:02:58.9]} 3. Nc3 {[%clk 0:03:00.5]} 3... Bg7 {[%clk 0:02:59.4]}
4. e4 {[%clk 0:03:00.7]} 4... d6 {[%clk 0:02:59.9]} 5. Be2 {[%clk 0:03:01.3]}
5... O-O {[%clk 0:03:00.1]} 6. Nf3 {[%clk 0:03:02]} 6... e5 {[%clk 0:03:00.2]}
7. O-O {[%clk 0:03:02.1]} 7... Nc6 {[%clk 0:03:00.7]} 8. d5 {[%clk 0:03:02.2]}
8... Ne7 {[%clk 0:03:01.3]} 9. b4 {[%clk 0:03:02]} 9... a5 {[%clk 0:03:00.9]}
10. Ba3 {[%clk 0:03:00.7]} 10... b6 {[%clk 0:02:58.4]} 11. bxa5 {[%clk
0:02:59.1]} 11... Nh5 {[%clk 0:02:58.9]} 12. Bb4 {[%clk 0:02:57.6]} 12... bxa5
{[%clk 0:02:58.4]} 13. Ba3 {[%clk 0:02:57.9]} 13... Nf4 {[%clk 0:02:56.5]} 14.
Nd2 {[%clk 0:02:56.1]} 14... Nxe2+ {[%clk 0:02:51.7]} 15. Qxe2 {[%clk
0:02:55.8]} 15... f5 {[%clk 0:02:52.3]} 16. Rfb1 {[%clk 0:02:38.6]} 16... fxe4
{[%clk 0:02:44]} 17. Ndxe4 {[%clk 0:02:37.4]} 17... Nf5 {[%clk 0:02:44.4]} 18.
c5 {[%clk 0:02:33.2]} 18... Nd4 {[%clk 0:02:43.6]} 19. Qd1 {[%clk 0:02:29.5]}
19... Qh4 {[%clk 0:02:17.9]} 20. cxd6 {[%clk 0:02:23.8]} 20... Bg4 {[%clk
0:02:17.6]} 21. Qf1 {[%clk 0:01:50.5]} 21... cxd6 {[%clk 0:01:56.8]} 22. Bxd6
{[%clk 0:01:42.9]} 22... Rf4 {[%clk 0:01:54.5]} 23. Ng3 {[%clk 0:01:22]} 23...
h5 {[%clk 0:01:20.1]} 24. Nb5 {[%clk 0:00:55.9]} 24... Rd8 {[%clk 0:01:04]} 25.
Nxd4 {[%clk 0:00:40.1]} 25... Rxd4 {[%clk 0:00:55.2]} 26. Rb8 {[%clk 0:00:37.1]}
26... Rxd5 {[%clk 0:00:44.3]} 27. Qc4 {[%clk 0:00:34.7]} 27... e4 {[%clk
0:00:23.8]} 28. Qxd5+ {[%clk 0:00:33.9]} 28... Kh7 {[%clk 0:00:24]} 29. Re1
{[%clk 0:00:27.4]} 1-0

[Event "*** SCC Grand Prix: Titled Tuesday Blitz"]
[Site "Chess.com"]
[Date "2020.07.07"]
[Round "9"]
[White "SGchess01"]
[Black "maximnovik"]
[Result "1-0"]
[WhiteElo "2642"]
[BlackElo "2503"]
[TimeControl "180+1"]
[EndTime "11:46:01 PDT"]
[Termination "SGchess01 won on time"]

1. d4 {[%clk 0:03:00.9]} 1... Nf6 {[%clk 0:02:59.5]} 2. c4 {[%clk 0:03:01.4]}
2... g6 {[%clk 0:03:00]} 3. Nc3 {[%clk 0:03:01.5]} 3... d5 {[%clk 0:03:00.5]} 4.
cxd5 {[%clk 0:03:01.4]} 4... Nxd5 {[%clk 0:03:00.2]} 5. e4 {[%clk 0:03:02]} 5...
Nxc3 {[%clk 0:03:00.3]} 6. bxc3 {[%clk 0:03:02.9]} 6... Bg7 {[%clk 0:03:00.5]}
7. Qa4+ {[%clk 0:03:03.4]} 7... Nd7 {[%clk 0:02:52.8]} 8. Nf3 {[%clk 0:03:01]}
8... O-O {[%clk 0:02:52.4]} 9. Qa3 {[%clk 0:03:01.2]} 9... c5 {[%clk 0:02:51.7]}
10. Be2 {[%clk 0:02:57.2]} 10... cxd4 {[%clk 0:02:48.9]} 11. cxd4 {[%clk
0:02:56.1]} 11... Nb6 {[%clk 0:02:49.3]} 12. Bg5 {[%clk 0:02:55.6]} 12... Re8
{[%clk 0:02:32.6]} 13. O-O {[%clk 0:02:54.8]} 13... Bg4 {[%clk 0:02:30.6]} 14.
Rad1 {[%clk 0:02:53.1]} 14... Qd6 {[%clk 0:02:22.1]} 15. Qe3 {[%clk 0:02:49.4]}
15... Bxf3 {[%clk 0:02:00.2]} 16. Bxf3 {[%clk 0:02:32.5]} 16... e5 {[%clk
0:01:59.4]} 17. dxe5 {[%clk 0:02:31.4]} 17... Qxe5 {[%clk 0:01:56.7]} 18. Bf4
{[%clk 0:02:30.8]} 18... Qa5 {[%clk 0:01:51.1]} 19. Qb3 {[%clk 0:02:22.6]} 19...
Rac8 {[%clk 0:01:40.6]} 20. Rc1 {[%clk 0:02:04.7]} 20... Rc3 {[%clk 0:00:53.1]}
21. Rxc3 {[%clk 0:01:59.9]} 21... Qxc3 {[%clk 0:00:52.7]} 22. Rc1 {[%clk
0:01:56.5]} 22... Qxb3 {[%clk 0:00:50.4]} 23. axb3 {[%clk 0:01:57.4]} 23... Be5
{[%clk 0:00:45.6]} 24. Be3 {[%clk 0:01:57.2]} 24... Rc8 {[%clk 0:00:40.2]} 25.
Rxc8+ {[%clk 0:01:55.6]} 25... Nxc8 {[%clk 0:00:40]} 26. Bg4 {[%clk 0:01:56]}
26... Nb6 {[%clk 0:00:20.2]} 27. f4 {[%clk 0:01:51.5]} 27... Bc3 {[%clk
0:00:18.7]} 28. Bf3 {[%clk 0:01:51.5]} 28... Nc8 {[%clk 0:00:14.5]} 29. Kf1
{[%clk 0:01:47.9]} 29... b6 {[%clk 0:00:14.2]} 30. Ke2 {[%clk 0:01:48.2]} 30...
Kf8 {[%clk 0:00:13.5]} 31. Kd3 {[%clk 0:01:48.6]} 31... Bf6 {[%clk 0:00:11.8]}
32. Kc4 {[%clk 0:01:48.1]} 32... Ke8 {[%clk 0:00:11.2]} 33. e5 {[%clk
0:01:46.3]} 33... Be7 {[%clk 0:00:10.7]} 34. Kb5 {[%clk 0:01:46.9]} 34... Kd7
{[%clk 0:00:10.2]} 35. Ka6 {[%clk 0:01:45.4]} 35... Bc5 {[%clk 0:00:09.5]} 36.
Bxc5 {[%clk 0:01:42.5]} 36... bxc5 {[%clk 0:00:09]} 37. Bg4+ {[%clk 0:01:42.8]}
37... Kc7 {[%clk 0:00:08.7]} 38. Bxc8 {[%clk 0:01:42.7]} 38... Kxc8 {[%clk
0:00:08.9]} 39. Kb5 {[%clk 0:01:41.9]} 39... Kd7 {[%clk 0:00:08.6]} 40. Kxc5
{[%clk 0:01:41.6]} 40... Ke6 {[%clk 0:00:09]} 41. b4 {[%clk 0:01:41.8]} 41...
Kf5 {[%clk 0:00:08.7]} 42. g3 {[%clk 0:01:39.1]} 42... h5 {[%clk 0:00:08.1]} 43.
Kb5 {[%clk 0:01:39.2]} 43... h4 {[%clk 0:00:06.7]} 44. Ka6 {[%clk 0:01:31.1]}
44... h3 {[%clk 0:00:05]} 45. b5 {[%clk 0:01:30.6]} 45... Kg4 {[%clk 0:00:05.6]}
46. Kxa7 {[%clk 0:01:31.3]} 46... Kf3 {[%clk 0:00:06.1]} 47. b6 {[%clk
0:01:32.2]} 47... Kg2 {[%clk 0:00:06.6]} 48. b7 {[%clk 0:01:33.1]} 48... Kxh2
{[%clk 0:00:07.1]} 49. b8=Q {[%clk 0:01:33.8]} 49... Kxg3 {[%clk 0:00:07.2]} 50.
f5 {[%clk 0:01:33.5]} 50... gxf5 {[%clk 0:00:06.1]} 51. e6+ {[%clk 0:01:33.9]}
51... f4 {[%clk 0:00:06.7]} 52. exf7 {[%clk 0:01:34.5]} 52... h2 {[%clk
0:00:06.3]} 53. f8=Q {[%clk 0:01:34.1]} 1-0